[Event "8th Gibraltar U16-Junior 2018"]
[Site "Caleta"]
[Date "2018.08.19"]
[Round "4"]
[White "Vyas, Param"]
[Black "Le, Vincent"]
[Result "1-0"]
[ECO "D11"]
[WhiteElo "1372"]
[BlackElo "1017"]
[Annotator "NA"]
[PlyCount "99"]
[EventDate "2018.08.17"]
[EventType "swiss"]
[EventCountry "GGB"]
[SourceTitle "playchess.com"]
[Source "ChessBase"]
[SourceQuality "1"]
[TimeControl "6600+10"]

1. d4 {[%emt 0:00:00]} d5 {[%emt 0:00:00]} 2. Nf3 {[%emt 0:00:00]} Nf6 {[%emt 0:00:24]} 3. c4 {[%emt 0:00:06]} c6 {[%emt 0:00:22]} 4. Nbd2 {[%emt 0:00:24]} Bf5 {[%emt 0:00:23]} 5. g3 {[%emt 0:00:30]} e6 {[%emt 0:00:21]} 6. Bg2 {[%emt 0:00:23]} Na6 {[%emt 0:00:26]} 7. a3 {[%emt 0:00:37]} c5 {[%emt 0:00:34]} 8. O-O {[%emt 0:02:57]} Be7 {[%emt 0:00:25]} 9. b3 {[%emt 0:00:56]} Bg6 {[%emt 0:01:10]} 10. Bb2 {[%emt 0:00:54]} O-O {[%emt 0:01:40]} 11. Rc1 {[%emt 0:03:02]} b6 {[%emt 0:00:51]} 12. Ne5 {[%emt 0:03:41]} Qc7 {[%emt 0:02:01]} 13. dxc5 {[%emt 0:10:05]} Nxc5 {[%emt 0:02:04]} 14. cxd5 {[%emt 0:00:25]} Nxd5 {[%emt 0:00:43]} 15. Nxg6 {[%emt 0:00:53]} fxg6 {[%emt 0:00:02]} 16. b4 {[%emt 0:00:17]} Nd7 {[%emt 0:01:13]} 17. Rxc7 {[%emt 0:00:37]} Nxc7 {[%emt 0:00:10]} 18. Bxa8 {[%emt 0:00:10]} Rxa8 {[%emt 0:04:03]} 19. Ne4 {[%emt 0:01:16]} Nf6 {[%emt 0:01:05]} 20. Nxf6+ {[%emt 0:00:51]} gxf6 {[%emt 0:05:48]} 21. Qd7 {[%emt 0:00:25]} Bd8 {[%emt 0:05:45]} 22. Rd1 {[%emt 0:02:49]} e5 {[%emt 0:07:01]} 23. Qxd8+ {[%emt 0:00:26]} Rxd8 {[%emt 0:04:10]} 24. Rxd8+ {[%emt 0:00:13]} Kg7 {[%emt 0:00:03]} 25. Rd7+ {[%emt 0:00:06]} Kh6 {[%emt 0:00:09]} 26. Rxc7 {[%emt 0:00:17]} a5 {[%emt 0:01:30]} 27. Rc6 {[%emt 0:00:39]} axb4 {[%emt 0:00:52]} 28. axb4 {[%emt 0:00:01]} f5 {[%emt 0:00:51]} 29. Bxe5 {[%emt 0:00:26]} b5 {[%emt 0:03:27]} 30. Rc5 {[%emt 0:00:07]} Kg5 {[%emt 0:02:51]} 31. h3 {[%emt 0:00:22]} h5 {[%emt 0:00:48]} 32. Bf4+ {[%emt 0:00:21]} Kf6 {[%emt 0:00:16]} 33. Rxb5 {[%emt 0:00:07]} g5 {[%emt 0:00:05]} 34. Bxg5+ {[%emt 0:00:17]} Kxg5 {[%emt 0:00:28]} 35. Rc5 {[%emt 0:00:16]} h4 {[%emt 0:00:21]} 36. gxh4+ {[%emt 0:00:18]} Kf4 {[%emt 0:00:02]} 37. Rxf5+ {[%emt 0:00:44]} Kxf5 {[%emt 0:00:11]} 38. b5 {[%emt 0:00:03]} Ke6 {[%emt 0:00:10]} 39. h5 {[%emt 0:00:10]} Kd7 {[%emt 0:00:05]} 40. h6 {[%emt 0:00:08]} Kc7 {[%emt 0:00:05]} 41. h7 {[%emt 0:00:13]} Kb6 {[%emt 0:00:24]} 42. h8=Q {[%emt 0:00:16]} Kxb5 {[%emt 0:00:09]} 43. Qc3 {[%emt 0:00:07]} Ka4 {[%emt 0:00:02]} 44. Qb2 {[%emt 0:00:10]} Ka5 {[%emt 0:00:23]} 45. f4 {[%emt 0:00:16]} Ka4 {[%emt 0:00:08]} 46. f5 {[%emt 0:00:10]} Ka5 {[%emt 0:00:00]} 47. f6 {[%emt 0:00:07]} Ka4 {[%emt 0:00:03]} 48. f7 {[%emt 0:00:06]} Ka5 {[%emt 0:00:06]} 49. f8=Q {[%emt 0:00:06]} Ka6 {[%emt 0:00:13]} 50. Qfa3# {[%emt 0:00:05]} 1-0

[Event "8th Gibraltar U16-Junior 2018"]
[Site "Caleta"]
[Date "2018.08.19"]
[Round "4"]
[White "Shigaeva, Arina"]
[Black "Greco, Joseph"]
[Result "0-1"]
[ECO "D02"]
[WhiteElo "1271"]
[BlackElo "1626"]
[Annotator "NA RC"]
[PlyCount "136"]
[EventDate "2018.08.17"]
[EventType "swiss"]
[EventCountry "GGB"]
[SourceTitle "playchess.com"]
[Source "ChessBase"]
[SourceQuality "1"]
[TimeControl "6600+10"]

1. d4 {[%emt 0:00:00]} Nf6 {[%emt 0:00:12]} 2. Bf4 {[%emt 0:00:16]} e6 {[%emt 0:00:18]} 3. Nf3 {[%emt 0:00:28]} c5 {[%emt 0:00:11]} 4. c3 {[%emt 0:02:32]} b6 {[%emt 0:01:43]} 5. e3 {[%emt 0:05:48]} Bb7 {[%emt 0:01:13]} 6. h3 {[%emt 0:01:01]} Be7 {[%emt 0:02:01]} 7. Bd3 {[%emt 0:03:01]} O-O {[%emt 0:00:52]} 8. O-O {[%emt 0:00:25]} d5 {[%emt 0:00:37]} 9. Nbd2 {[%emt 0:03:25]} Ne4 {[%emt 0:01:11]} 10. Bc2 {[%emt 0:07:02]} Nd7 {[%emt 0:01:11]} 11. Nxe4 {[%emt 0:06:16]} dxe4 {[%emt 0:00:15]} 12. Nd2 {[%emt 0:00:26]} f5 {[%emt 0:04:04]} 13. f3 {[%emt 0:04:54]} exf3 {[%emt 0:04:11]} 14. Nxf3 {[%emt 0:00:29]} Bd5 {[%emt 0:01:42]} 15. b3 {[%emt 0:04:30]} b5 {[%emt 0:04:42]} 16. Qe1 {[%emt 0:17:55]} cxd4 {[%emt 0:04:48]} 17. exd4 {[%emt 0:02:11]} Rc8 {[%emt 0:02:44]} 18. Rc1 {[%emt 0:02:35]} Rf6 {[%emt 0:07:56]} 19. Bd3 {[%emt 0:00:50]} Qb6 {[%emt 0:09:40]} 20. Ne5 {[%emt 0:05:53]} Nxe5 {[%emt 0:02:17]} 21. Bxe5 {[%emt 0:00:19]} Rg6 {[%emt 0:00:09]} 22. Rc2 {[%emt 0:11:05]} Bf6 {[%emt 0:03:06]} 23. Kh2 {[%emt 0:04:47]} Qb7 {[%emt 0:09:23]} 24. Rff2 {[%emt 0:05:03]} Rh6 {[%emt 0:19:19]} 25. Qe3 {[%emt 0:02:21]} Be7 {[%emt 0:03:39]} 26. Qf4 {[%emt 0:05:30]} g5 {[%emt 0:02:21]} 27. Qd2 {[%emt 0:02:24]} Be4 {[%emt 0:08:47]} 28. Qe2 {[%emt 0:04:06]} Bxd3 {[%emt 0:00:29]} 29. Qxd3 {[%emt 0:00:18]} Rh4 {[%emt 0:04:32]} 30. g3 {[%emt 0:02:17]} Re4 {[%emt 0:01:06]} 31. Qf3 {[%emt 0:01:24]} Qd5 {[%emt 0:02:01]} 32. g4 {[%emt 0:01:52]} f4 {[%emt 0:00:41]} 33. c4 {[%emt 0:00:39]} bxc4 {[%emt 0:01:21]} 34. bxc4 {[%emt 0:00:10]} Qa8 {[%emt 0:00:10]} 35. c5 {[%emt 0:00:47]} Qd5 {[%emt 0:00:34]} 36. Rce2 {[%emt 0:01:11]} Rxe2 {[%emt 0:00:11]} 37. Qxe2 {[%emt 0:00:31]} a5 {[%emt 0:01:07]} 38. Qf3 {[%emt 0:00:13]} Qd7 {[%emt 0:00:50]} 39. Rb2 {[%emt 0:00:29]} Bd8 {[%emt 0:01:04]} 40. Rb7 {[%emt 0:00:24]} Bc7 {[%emt 0:00:38]} 41. Bxc7 {[%emt 0:00:13]} Rxc7 {[%emt 0:00:01]} 42. Rxc7 {[%emt 0:00:02]} Qxc7 {[%emt 0:00:01]} 43. Kg2 {[%emt 0:00:22]} Kg7 {[%emt 0:00:53]} 44. Qc3 {[%emt 0:00:02]} Kf7 {[%emt 0:00:42]} 45. c6 {[%emt 0:00:18]} h6 {[%emt 0:00:41]} 46. Kf3 {[%emt 0:00:05]} Ke8 {[%emt 0:00:33]} 47. Ke4 {[%emt 0:00:10]} Kf7 {[%emt 0:00:15]} 48. Qc4 {[%emt 0:00:10]} Kf6 {[%emt 0:00:09]} 49. Qc3 {[%emt 0:00:11]} Kf7 {[%emt 0:00:02]} 50. Qc4 {[%emt 0:00:09]} Ke7 {[%emt 0:00:33]} 51. Qc5+ {[%emt 0:00:02]} Kf7 {[%emt 0:00:21]} 52. Qc4 {[%emt 0:00:07]} Kf6 {[%emt 0:00:26]} 53. Qb5 {[%emt 0:00:15]} Ke7 {[%emt 0:00:07]} 54. Qc5+ {[%emt 0:00:03]} Qd6 {[%emt 0:00:19]} 55. c7 {[%emt 0:00:44]} Qxc5 {[%emt 0:00:01]} 56. dxc5 {[%emt 0:00:01]} Kd7 {[%emt 0:00:01]} 57. Kf3 {[%emt 0:00:22]} Kxc7 {[%emt 0:00:01]} 58. a4 {[%emt 0:00:05]} Kc6 {[%emt 0:00:01]} 59. Ke4 {[%emt 0:00:06]} Kxc5 {[%emt 0:00:01]} 60. Kf3 {[%emt 0:00:03]} Kd4 {[%emt 0:00:02]} 61. Kf2 {[%emt 0:00:04]} Kd3 {[%emt 0:00:01]} 62. Kf3 {[%emt 0:00:01]} e5 {[%emt 0:00:00]} 63. Kf2 {[%emt 0:00:03]} Kd2 {[%emt 0:00:01]} 64. Kf3 {[%emt 0:00:01]} Kd3 {[%emt 0:00:02]} 65. Kf2 {[%emt 0:00:05]} e4 {[%emt 0:00:01]} 66. Ke1 {[%emt 0:00:05]} e3 {[%emt 0:00:01]} 67. Kd1 {[%emt 0:00:05]} f3 {[%emt 0:00:02]} 68. Ke1 {[%emt 0:00:04]} e2 {[%emt 0:00:23]} 0-1

[Event "8th Gibraltar U16-Junior 2018"]
[Site "Caleta"]
[Date "2018.08.19"]
[Round "4"]
[White "Mahtani, Johan"]
[Black "Seleznev, Egor"]
[Result "0-1"]
[ECO "D00"]
[WhiteElo "1166"]
[BlackElo "1388"]
[Annotator "NA"]
[PlyCount "104"]
[EventDate "2018.08.17"]
[EventType "swiss"]
[EventCountry "GGB"]
[SourceTitle "playchess.com"]
[Source "ChessBase"]
[SourceQuality "1"]
[TimeControl "6600+10"]

1. d4 {[%emt 0:00:00]} d5 {[%emt 0:00:05]} 2. Nc3 {[%emt 0:00:00]} Nf6 {[%emt 0:00:31]} 3. Bf4 {[%emt 0:00:04]} c6 {[%emt 0:00:34]} 4. Nf3 {[%emt 0:00:09]} Bf5 {[%emt 0:01:06]} 5. e3 {[%emt 0:00:20]} e6 {[%emt 0:00:35]} 6. a3 {[%emt 0:00:19]} Nbd7 {[%emt 0:01:27]} 7. Bd3 {[%emt 0:00:08]} Ne4 {[%emt 0:02:36]} 8. Bxe4 {[%emt 0:00:41]} dxe4 {[%emt 0:00:49]} 9. Nd2 {[%emt 0:00:11]} Nf6 {[%emt 0:02:20]} 10. Bg5 {[%emt 0:00:15]} h6 {[%emt 0:05:26]} 11. Bxf6 {[%emt 0:00:44]} Qxf6 {[%emt 0:00:39]} 12. Ndxe4 {[%emt 0:00:19]} Qg6 {[%emt 0:01:14]} 13. Qf3 {[%emt 0:01:01]} O-O-O {[%emt 0:00:53]} 14. O-O-O {[%emt 0:00:32]} Bg4 {[%emt 0:00:36]} 15. Qg3 {[%emt 0:01:30]} Bxd1 {[%emt 0:00:36]} 16. Rxd1 {[%emt 0:00:22]} Qxg3 {[%emt 0:00:32]} 17. fxg3 {[%emt 0:00:13]} Be7 {[%emt 0:03:12]} 18. Rf1 {[%emt 0:00:36]} f5 {[%emt 0:01:19]} 19. Nd2 {[%emt 0:00:12]} Bg5 {[%emt 0:01:24]} 20. Nc4 {[%emt 0:00:10]} b5 {[%emt 0:01:52]} 21. Ne5 {[%emt 0:01:09]} Bxe3+ {[%emt 0:01:22]} 22. Kb1 {[%emt 0:00:07]} Kc7 {[%emt 0:07:19]} 23. Nf7 {[%emt 0:00:15]} Bxd4 {[%emt 0:00:38]} 24. Nxh8 {[%emt 0:00:24]} Rxh8 {[%emt 0:01:58]} 25. Ne2 {[%emt 0:00:13]} Be5 {[%emt 0:02:27]} 26. Re1 {[%emt 0:03:07]} Re8 {[%emt 0:01:28]} 27. Nc1 {[%emt 0:00:09]} Bd6 {[%emt 0:01:21]} 28. Ne2 {[%emt 0:00:16]} c5 {[%emt 0:00:38]} 29. Nc3 {[%emt 0:00:12]} Kc6 {[%emt 0:00:46]} 30. b3 {[%emt 0:01:02]} a6 {[%emt 0:03:31]} 31. Ne2 {[%emt 0:00:17]} g5 {[%emt 0:01:18]} 32. b4 {[%emt 0:00:16]} e5 {[%emt 0:02:26]} 33. Rf1 {[%emt 0:00:15]} f4 {[%emt 0:01:02]} 34. c3 {[%emt 0:00:32]} Rf8 {[%emt 0:04:17]} 35. gxf4 {[%emt 0:00:09]} exf4 {[%emt 0:02:10]} 36. Rf3 {[%emt 0:00:14]} g4 {[%emt 0:00:55]} 37. Rf2 {[%emt 0:02:16]} cxb4 {[%emt 0:08:04]} 38. Nd4+ {[%emt 0:01:03]} Kd7 {[%emt 0:02:20]} 39. axb4 {[%emt 0:00:24]} h5 {[%emt 0:01:49]} 40. Kc2 {[%emt 0:00:13]} Re8 {[%emt 0:06:30]} 41. Rd2 {[%emt 0:00:23]} Re5 {[%emt 0:01:31]} 42. Ne2 {[%emt 0:01:29]} f3 {[%emt 0:02:38]} 43. gxf3 {[%emt 0:00:28]} gxf3 {[%emt 0:00:25]} 44. Nd4 {[%emt 0:00:11]} Re3 {[%emt 0:03:12]} 45. Nf5 {[%emt 0:00:18]} Re2 {[%emt 0:03:46]} 46. Nxd6 {[%emt 0:00:57]} Rxd2+ {[%emt 0:00:17]} 47. Kxd2 {[%emt 0:00:19]} Kxd6 {[%emt 0:00:21]} 48. Ke3 {[%emt 0:00:10]} Kd5 {[%emt 0:00:18]} 49. Kxf3 {[%emt 0:00:19]} Kc4 {[%emt 0:00:15]} 50. Kf4 {[%emt 0:00:03]} Kxc3 {[%emt 0:01:30]} 51. Kg5 {[%emt 0:00:22]} Kxb4 {[%emt 0:00:40]} 52. Kxh5 {[%emt 0:00:08]} Kc4 {[%emt 0:00:27]} 0-1

[Event "8th Gibraltar U16-Junior 2018"]
[Site "Caleta"]
[Date "2018.08.19"]
[Round "5"]
[White "Haase, Pavel"]
[Black "Garrido Outon, Alex"]
[Result "1/2-1/2"]
[ECO "A25"]
[WhiteElo "2177"]
[BlackElo "2119"]
[Annotator "NA"]
[PlyCount "59"]
[EventDate "2018.08.17"]
[EventType "swiss"]
[EventCountry "GGB"]
[SourceTitle "playchess.com"]
[Source "ChessBase"]
[SourceQuality "1"]
[TimeControl "6600+10"]

1. c4 {[%emt 0:00:24]} Nf6 {[%emt 0:00:03]} 2. Nc3 {[%emt 0:01:37]} g6 {[%emt 0:00:16]} 3. g3 {[%emt 0:01:54]} Bg7 {[%emt 0:00:28]} 4. Bg2 {[%emt 0:01:18]} O-O {[%emt 0:00:55]} 5. d3 {[%emt 0:01:54]} d6 {[%emt 0:01:07]} 6. e3 {[%emt 0:02:17]} Nc6 {[%emt 0:04:10]} 7. Nge2 {[%emt 0:01:08]} e5 {[%emt 0:00:43]} 8. O-O {[%emt 0:00:36]} Nh5 {[%emt 0:06:15]} 9. f4 {[%emt 0:04:58]} exf4 {[%emt 0:07:16]} 10. Nxf4 {[%emt 0:04:26]} Nxf4 {[%emt 0:01:52]} 11. gxf4 $11 {[%emt 0:07:05]} Be6 {[%emt 0:09:21]} 12. Bd2 {[%emt 0:03:18]} Qd7 {[%emt 0:01:04]} 13. a3 {[%emt 0:02:39]} Ne7 {[%emt 0:04:10]} 14. Qf3 {[%emt 0:06:41]} c6 {[%emt 0:08:28]} 15. Rac1 {[%emt 0:07:06]} d5 {[%emt 0:13:58]} 16. cxd5 {[%emt 0:06:15]} cxd5 {[%emt 0:03:48]} 17. d4 {[%emt 0:07:02]} Rac8 {[%emt 0:02:32]} 18. b3 {[%emt 0:09:29]} b6 {[%emt 0:09:17]} 19. Qe2 {[%emt 0:05:50]} Rc6 {[%emt 0:06:00]} 20. Kh1 {[%emt 0:07:40]} Rfc8 {[%emt 0:05:22]} 21. Qb5 {[%emt 0:04:08]} Bh3 {[%emt 0:01:26]} 22. Bxh3 {[%emt 0:04:42]} Qxh3 {[%emt 0:02:04]} 23. Rg1 {[%emt 0:03:55]} Bf6 {[%emt 0:10:09]} 24. Qd3 {[%emt 0:05:19]} Qf3+ {[%emt 0:03:18]} 25. Rg2 {[%emt 0:00:15]} Nf5 {[%emt 0:00:13]} 26. Qe2 {[%emt 0:07:44]} Qxe2 {[%emt 0:03:28]} 27. Rxe2 {[%emt 0:00:27]} Bxd4 {[%emt 0:00:45]} 28. exd4 {[%emt 0:00:45]} Nxd4 {[%emt 0:00:02]} 29. Ree1 {[%emt 0:01:54]} Nxb3 {[%emt 0:01:07]} 30. Rcd1 {[%emt 0:00:20]} 1/2-1/2

[Event "8th Gibraltar U16-Junior 2018"]
[Site "Caleta"]
[Date "2018.08.19"]
[Round "5"]
[White "Moreby, James"]
[Black "Cuellar Montes, Alejandro"]
[Result "1-0"]
[ECO "A28"]
[WhiteElo "2084"]
[BlackElo "2074"]
[Annotator "NA"]
[PlyCount "49"]
[EventDate "2018.08.17"]
[EventType "swiss"]
[EventCountry "GGB"]
[SourceTitle "playchess.com"]
[Source "ChessBase"]
[SourceQuality "1"]
[TimeControl "6600+10"]

1. c4 {[%emt 0:00:00]} e5 {[%emt 0:00:00]} 2. Nc3 {[%emt 0:00:00]} Nf6 {[%emt 0:00:02]} 3. Nf3 {[%emt 0:00:00]} Nc6 {[%emt 0:00:07]} 4. e4 {[%emt 0:00:01]} Bc5 {[%emt 0:00:11]} 5. Nxe5 {[%emt 0:00:06]} Nxe5 {[%emt 0:00:12]} 6. d4 {[%emt 0:00:01]} Bb4 {[%emt 0:00:12]} 7. dxe5 {[%emt 0:00:05]} Nxe4 {[%emt 0:00:07]} 8. Qf3 {[%emt 0:00:03]} Nxc3 {[%emt 0:00:20]} 9. bxc3 {[%emt 0:00:01]} Ba5 {[%emt 0:00:09]} 10. Ba3 {[%emt 0:07:17]} Qg5 {[%emt 0:07:26]} 11. Rd1 {[%emt 0:17:14]} Qxe5+ {[%emt 0:06:04]} 12. Kd2 {[%emt 0:00:02]} Qg5+ {[%emt 0:00:23]} 13. Kc2 $18 {[%emt 0:00:29]} c5 {[%emt 0:26:06]} 14. Re1+ {[%emt 0:14:47]} Kd8 {[%emt 0:08:24]} 15. h4 {[%emt 0:01:15]} Qg6+ {[%emt 0:02:44]} 16. Bd3 {[%emt 0:06:56]} Qc6 {[%emt 0:03:50]} 17. Qxc6 {[%emt 0:03:15]} dxc6 {[%emt 0:00:31]} 18. Bxc5 {[%emt 0:00:16]} Bd7 {[%emt 0:25:43]} 19. Re7 {[%emt 0:05:12]} Bb6 {[%emt 0:10:57]} 20. Bd6 {[%emt 0:01:41]} Bxf2 {[%emt 0:02:22]} 21. Rxf7 {[%emt 0:00:16]} Bb6 {[%emt 0:01:22]} 22. c5 {[%emt 0:00:21]} Bc7 {[%emt 0:00:50]} 23. Bxc7+ {[%emt 0:00:24]} Kxc7 {[%emt 0:00:10]} 24. Bf5 {[%emt 0:00:06]} Rad8 {[%emt 0:01:09]} 25. Rd1 {[%emt 0:00:07]} 1-0

[Event "8th Gibraltar U16-Junior 2018"]
[Site "Caleta"]
[Date "2018.08.19"]
[Round "5"]
[White "Perez Beltran, Salvador"]
[Black "Patel, Devan"]
[Result "1-0"]
[ECO "C69"]
[WhiteElo "2018"]
[BlackElo "1716"]
[Annotator "NA"]
[PlyCount "155"]
[EventDate "2018.08.17"]
[EventType "swiss"]
[EventCountry "GGB"]
[SourceTitle "playchess.com"]
[Source "ChessBase"]
[SourceQuality "1"]
[TimeControl "6600+10"]

1. e4 {[%emt 0:00:00]} e5 {[%emt 0:00:04]} 2. Nf3 {[%emt 0:00:00]} Nc6 {[%emt 0:02:19]} 3. Bb5 {[%emt 0:02:24]} a6 {[%emt 0:00:07]} 4. Bxc6 {[%emt 0:00:04]} dxc6 {[%emt 0:00:07]} 5. O-O {[%emt 0:00:26]} f6 {[%emt 0:00:29]} 6. d4 {[%emt 0:00:04]} exd4 {[%emt 0:06:57]} 7. Nxd4 {[%emt 0:00:07]} c5 {[%emt 0:07:15]} 8. Nb3 {[%emt 0:00:24]} Qxd1 {[%emt 0:02:15]} 9. Rxd1 {[%emt 0:00:12]} Bd6 {[%emt 0:03:19]} 10. Na5 $14 {[%emt 0:27:23] LiveBook: 41 Games} b5 {[%emt 0:16:30]} 11. c4 {[%emt 0:04:16]} Ne7 {[%emt 0:09:03]} 12. Be3 {[%emt 0:02:40]} Be6 {[%emt 0:19:44]} 13. Nb7 {[%emt 0:25:17]} Be5 {[%emt 0:05:39]} 14. Nc3 {[%emt 0:04:43]} Bxc4 {[%emt 0:06:05]} 15. Nxc5 {[%emt 0:00:53]} Kf7 {[%emt 0:07:43]} 16. f4 {[%emt 0:02:39]} Bxc3 {[%emt 0:00:35]} 17. bxc3 {[%emt 0:00:15]} Rhd8 {[%emt 0:06:57]} 18. a3 {[%emt 0:05:59]} a5 {[%emt 0:01:55]} 19. Nb7 {[%emt 0:06:37]} Rd3 {[%emt 0:02:10]} 20. Rxd3 {[%emt 0:00:28]} Bxd3 {[%emt 0:00:01]} 21. Nc5 {[%emt 0:00:09]} Bc4 {[%emt 0:01:41]} 22. Rd1 {[%emt 0:00:05]} b4 {[%emt 0:01:33]} 23. cxb4 {[%emt 0:01:21]} axb4 {[%emt 0:00:00]} 24. axb4 {[%emt 0:00:08]} Ra3 {[%emt 0:00:48]} 25. Kf2 {[%emt 0:00:36]} Ra2+ {[%emt 0:00:11]} 26. Rd2 {[%emt 0:01:27]} Nc6 {[%emt 0:00:45]} 27. Rxa2 {[%emt 0:01:05]} Bxa2 {[%emt 0:00:01]} 28. Bd2 {[%emt 0:03:38]} Ke7 {[%emt 0:02:03]} 29. Ke3 {[%emt 0:02:08]} Nd8 {[%emt 0:00:24]} 30. Bc3 {[%emt 0:01:17]} Bc4 {[%emt 0:00:27]} 31. g3 {[%emt 0:00:33]} Ne6 {[%emt 0:00:21]} 32. Nd3 {[%emt 0:01:37]} Ba6 {[%emt 0:00:15]} 33. Ne1 {[%emt 0:02:16]} Kf7 {[%emt 0:00:31]} 34. Nf3 {[%emt 0:00:11]} Nd8 {[%emt 0:02:35]} 35. Nd4 {[%emt 0:00:29]} Ne6 {[%emt 0:00:32]} 36. Nf3 {[%emt 0:00:13]} Nd8 {[%emt 0:00:02]} 37. e5 {[%emt 0:00:24]} fxe5 {[%emt 0:00:01]} 38. Nxe5+ {[%emt 0:00:15]} Ke6 {[%emt 0:00:29]} 39. Nf3 {[%emt 0:00:18]} Kf7 {[%emt 0:00:05]} 40. Ng5+ {[%emt 0:00:21]} Kg6 {[%emt 0:00:04]} 41. h4 {[%emt 0:00:28]} h6 {[%emt 0:00:14]} 42. Nf3 {[%emt 0:00:26]} Ne6 {[%emt 0:00:43]} 43. g4 {[%emt 0:00:28]} Kf7 {[%emt 0:01:01]} 44. f5 {[%emt 0:00:20]} Nd8 {[%emt 0:00:38]} 45. Ne5+ {[%emt 0:00:10]} Kf8 {[%emt 0:00:09]} 46. Nd7+ {[%emt 0:00:37]} Kf7 {[%emt 0:00:05]} 47. Ne5+ {[%emt 0:00:22]} Kf8 {[%emt 0:00:02]} 48. Kf4 {[%emt 0:00:59]} Nb7 {[%emt 0:00:28]} 49. Nc6 {[%emt 0:01:13]} Bc4 {[%emt 0:00:25]} 50. Ne5 {[%emt 0:00:47]} Bd5 {[%emt 0:00:28]} 51. Ng6+ {[%emt 0:00:31]} Kf7 {[%emt 0:00:08]} 52. Ne5+ {[%emt 0:00:23]} Kf8 {[%emt 0:00:01]} 53. Nd7+ {[%emt 0:00:14]} Kf7 {[%emt 0:00:09]} 54. g5 {[%emt 0:01:03]} hxg5+ {[%emt 0:00:15]} 55. hxg5 {[%emt 0:00:55]} Bb3 {[%emt 0:00:25]} 56. Ne5+ {[%emt 0:00:12]} Kf8 {[%emt 0:00:05]} 57. Ng6+ {[%emt 0:00:44]} Kf7 {[%emt 0:00:08]} 58. Ne5+ {[%emt 0:00:11]} Kf8 {[%emt 0:00:02]} 59. Nc6 {[%emt 0:00:45]} Ba4 {[%emt 0:00:10]} 60. Nd4 {[%emt 0:00:20]} Kf7 {[%emt 0:00:18]} 61. Ne6 {[%emt 0:00:21]} g6 {[%emt 0:00:03]} 62. Nxc7 {[%emt 0:00:27]} gxf5 {[%emt 0:00:13]} 63. Kxf5 {[%emt 0:00:14]} Bd7+ {[%emt 0:00:01]} 64. Kf4 {[%emt 0:00:13]} Nd6 {[%emt 0:00:06]} 65. Nd5 {[%emt 0:00:17]} Nb5 {[%emt 0:00:06]} 66. Bd2 {[%emt 0:00:14]} Nd6 {[%emt 0:00:10]} 67. Nf6 {[%emt 0:00:19]} Bb5 {[%emt 0:00:12]} 68. Ng4 {[%emt 0:00:14]} Ba4 {[%emt 0:00:21]} 69. Ne5+ {[%emt 0:00:34]} Kg7 {[%emt 0:00:06]} 70. Bc3 {[%emt 0:00:13]} Kg8 {[%emt 0:00:18]} 71. Bd4 {[%emt 0:00:32]} Bb3 {[%emt 0:00:47]} 72. Bc5 {[%emt 0:00:11]} Ne8 {[%emt 0:00:11]} 73. Ng4 {[%emt 0:00:44]} Nc7 {[%emt 0:00:05]} 74. Ke5 {[%emt 0:00:40]} Na6 {[%emt 0:00:08]} 75. Kf6 {[%emt 0:00:18]} Bc2 {[%emt 0:00:37]} 76. g6 {[%emt 0:00:15]} Bb3 {[%emt 0:00:32]} 77. Nh6+ {[%emt 0:00:13]} Kh8 {[%emt 0:00:02]} 78. Bf8 {[%emt 0:00:21]} 1-0

[Event "8th Gibraltar U16-Junior 2018"]
[Site "Caleta"]
[Date "2018.08.19"]
[Round "5"]
[White "Jayawarna, Nugith"]
[Black "Gough, Theo"]
[Result "1-0"]
[ECO "A25"]
[WhiteElo "2013"]
[BlackElo "1346"]
[Annotator "NA"]
[PlyCount "71"]
[EventDate "2018.08.17"]
[EventType "swiss"]
[EventCountry "GGB"]
[SourceTitle "playchess.com"]
[Source "ChessBase"]
[SourceQuality "1"]
[TimeControl "6600+10"]

1. c4 {[%emt 0:00:00]} e5 {[%emt 0:00:00]} 2. g3 {[%emt 0:00:00]} Nc6 {[%emt 0:00:14]} 3. Bg2 {[%emt 0:00:04]} Nf6 {[%emt 0:00:11]} 4. Nc3 {[%emt 0:00:06]} Bb4 {[%emt 0:00:09]} 5. Nd5 {[%emt 0:00:22]} Nxd5 {[%emt 0:00:49]} 6. cxd5 {[%emt 0:00:27]} Ne7 {[%emt 0:01:05]} 7. e3 {[%emt 0:05:04]} O-O {[%emt 0:05:31]} 8. a3 {[%emt 0:01:29]} Ba5 {[%emt 0:01:07]} 9. b4 {[%emt 0:02:18]} Bb6 {[%emt 0:00:15]} 10. Ne2 {[%emt 0:00:46]} c6 {[%emt 0:01:27]} 11. Nc3 {[%emt 0:02:33]} d6 {[%emt 0:03:36]} 12. O-O {[%emt 0:04:02]} Bf5 {[%emt 0:03:05]} 13. d3 {[%emt 0:05:10]} a5 {[%emt 0:03:56]} 14. Bb2 {[%emt 0:09:54]} axb4 $11 {[%emt 0:03:05]} 15. axb4 {[%emt 0:01:21]} Rxa1 {[%emt 0:06:44]} 16. Bxa1 {[%emt 0:09:43]} Qd7 {[%emt 0:03:35]} 17. d4 {[%emt 0:29:07]} exd4 {[%emt 0:04:47]} 18. Na4 {[%emt 0:02:14]} Ba7 {[%emt 0:01:42]} 19. Bxd4 {[%emt 0:01:01]} Bxd4 {[%emt 0:01:30]} 20. Qxd4 {[%emt 0:00:23]} cxd5 {[%emt 0:15:06]} 21. Nb6 {[%emt 0:01:10]} Qc7 {[%emt 0:02:18]} 22. Nxd5 {[%emt 0:03:30]} Nxd5 {[%emt 0:00:30]} 23. Qxd5 {[%emt 0:05:04]} g6 {[%emt 0:06:45]} 24. h4 {[%emt 0:07:16]} Be6 {[%emt 0:01:47]} 25. Qd4 {[%emt 0:00:40]} b5 {[%emt 0:03:32]} 26. h5 {[%emt 0:03:17]} h6 {[%emt 0:03:55]} 27. Rd1 {[%emt 0:03:48]} Rd8 {[%emt 0:00:19]} 28. Ra1 {[%emt 0:02:18]} Qe7 {[%emt 0:03:54]} 29. Bc6 {[%emt 0:03:39]} Bd7 {[%emt 0:00:46]} 30. Ra7 {[%emt 0:01:00]} gxh5 {[%emt 0:07:33]} 31. Qb6 {[%emt 0:02:11]} Kf8 {[%emt 0:02:46]} 32. Qb7 {[%emt 0:02:57]} Ke8 {[%emt 0:00:40]} 33. Qxb5 {[%emt 0:00:29]} f6 {[%emt 0:00:38]} 34. Qxh5+ {[%emt 0:00:24]} Kf8 {[%emt 0:01:06]} 35. Qxh6+ {[%emt 0:00:02]} Kg8 {[%emt 0:00:38]} 36. Bd5+ {[%emt 0:00:10] Qe8 [%emt 00:00:44]} 1-0